fUST/lending_fUST_20250701
["ID","MTS","AMOUNT","RATE_DAILY","PERIOD"]
[368771735,1751356655904,460.0,0.00018038,2]
[368771742,1751356663968,460.0,0.00018037,2]
[368771743,1751356664274,460.0,0.00018037,2]
[368771747,1751356668513,460.0,0.00018038,2]
[368771748,1751356674037,460.0,0.00018038,2]
[368771749,1751356683899,460.0,0.00018038,2]
[368771750,1751356688178,508.41,0.00018037,2]
[368771755,1751356693260,460.0,0.00018038,2]
[368771761,1751356700246,452.45220244,0.00017666,2]
[368771762,1751356700986,460.0,0.00018038,2]
[368771763,1751356701686,460.0,0.00018037,2]
[368771764,1751356701815,460.0,0.00018037,2]
[368771766,1751356704112,302.88878363,0.00018036,2]
[368771767,1751356705674,460.0,0.00018037,2]
[368771768,1751356705757,460.0,0.00018037,2]
[368771770,1751356707508,458.19878345,0.00018037,2]
[368771771,1751356708952,460.0,0.00018037,2]
[368771776,1751356712158,460.0,0.00018037,2]
[368771777,1751356712994,460.0,0.00018037,2]
[368771778,1751356713284,1337.89,0.00018036,2]
[368771779,1751356713549,460.0,0.00018037,2]
[368771780,1751356713832,420.11859875,0.00018038,2]
[368771781,1751356714860,460.0,0.00018037,2]
[368771783,1751356718385,460.0,0.00018037,2]
[368771784,1751356718568,124.09003872,0.00018038,2]
[368771785,1751356718638,335.90996128,0.00018038,2]
[368771787,1751356720063,19664.09003872,0.00017261,2]
[368771788,1751356720134,5235.90996128,0.00017261,2]
[368771790,1751356724156,460.0,0.00018036,2]
[368771791,1751356726275,164.70020361,0.00018037,2]
[368771793,1751356726573,460.0,0.00018038,2]
[368771794,1751356727146,460.0,0.00018039,2]
[368771795,1751356727275,460.0,0.00018038,2]
[368771798,1751356733537,957.31,0.00018038,2]
[368771799,1751356733821,460.0,0.00018036,2]
[368771802,1751356737828,460.0,0.00018037,2]
[368771803,1751356739591,460.0,0.00018037,2]
[368771806,1751356742645,460.0,0.00018037,2]
[368771807,1751356743210,460.0,0.00018038,2]
[368771809,1751356745893,460.0,0.00018037,2]
[368771810,1751356746562,460.0,0.0001804,2]
[368771813,1751356749022,931.04,0.00018036,2]
[368771814,1751356749305,460.0,0.00018036,2]
[368771815,1751356752585,173.7689477,0.00017261,2]
[368771817,1751356754018,460.0,0.00018038,2]
[368771818,1751356757756,283.21793247,0.00018037,2]
[368771819,1751356758549,460.0,0.00018038,2]
[368771820,1751356761415,460.0,0.00018036,2]
[368771821,1751356764551,460.0,0.00018039,2]
[368771822,1751356767966,460.0,0.00018037,2]
[368771823,1751356768589,460.0,0.00018038,2]
[368771827,1751356768867,460.0,0.00018038,2]
[368771873,1751356770521,460.0,0.00018036,2]
[368771874,1751356773755,1099.5,0.00018036,2]
[368771875,1751356774301,460.0,0.00018037,2]
[368771876,1751356774633,460.0,0.00018037,2]
[368771877,1751356777189,460.0,0.00018037,2]
[368771878,1751356779635,460.0,0.00018038,2]
[368771879,1751356780028,114.55295494,0.00018037,2]
[368771880,1751356780098,345.44704506,0.00018037,2]
[368771881,1751356781745,460.0,0.00018037,2]
[368771882,1751356783351,460.0,0.00018036,2]
[368771883,1751356783943,799.58,0.00018038,2]
[368771884,1751356789700,460.0,0.00018037,2]
[368771885,1751356793536,17474.97295494,0.00017261,2]
[368771886,1751356793601,20000.0,0.00017261,2]
[368771887,1751356793671,12098.96226216,0.00017261,2]
[368771888,1751356802833,440.0,0.00018037,2]
[368771889,1751356803308,151.69733128,6.9e-07,2]
[368771890,1751356803513,151.69733128,6.9e-07,2]
[368771891,1751356803619,327.16481417,0.00018037,2]
[368771892,1751356803823,151.69733128,6.9e-07,2]
[368771893,1751356803941,151.69733128,6.9e-07,2]
[368771894,1751356804057,151.69733128,6.9e-07,2]
[368771895,1751356804185,151.69733128,6.9e-07,2]
[368771896,1751356804320,151.69733128,6.9e-07,2]
[368771897,1751356804462,927.25,0.00018036,2]
[368771898,1751356804646,460.0,0.00018037,2]
[368771899,1751356805372,460.0,0.00018037,2]
[368771900,1751356809273,460.0,0.00018038,2]
[368771901,1751356809369,460.0,0.00018037,2]
[368771902,1751356817587,460.0,0.00018038,2]
[368771903,1751356826021,460.0,0.00018037,2]
[368771904,1751356831201,460.0,0.00018038,2]
[368771905,1751356833128,460.0,0.00018038,2]
[368771906,1751356835764,460.0,0.00018038,2]
[368771907,1751356836649,1004.74160471,0.00018036,2]
[368771908,1751356836717,113.38839529,0.00018036,2]
[368771909,1751356841841,5797.155736,0.00017236,2]
[368771910,1751356842869,1884.25,0.00018038,2]
[368771911,1751356844714,460.0,0.00018037,2]
[368771912,1751356845031,460.0,0.00018038,2]
[368771913,1751356852034,1581.7,0.00018037,2]
[368771914,1751356852413,460.0,0.00018036,2]
[368771915,1751356852771,460.0,0.00018038,2]
[368771916,1751356859757,460.0,0.00018038,2]
[368771917,1751356860060,460.0,0.00018037,2]
[368771918,1751356861929,460.0,0.00018037,2]
[368771919,1751356862780,526.82,0.00018036,2]
[368771920,1751356863601,460.0,0.00018038,2]
[368771921,1751356868128,460.0,0.00018036,2]
[368771922,1751356870517,460.0,0.00018037,2]
[368771923,1751356871427,460.0,0.00018036,2]
[368771924,1751356871809,460.0,0.00018038,2]
[368771925,1751356871882,687.72,0.00018036,2]
[368771926,1751356874401,460.0,0.00018037,2]
[368771927,1751356879499,460.0,0.00018038,2]
[368771928,1751356885963,535.02,0.00018038,2]
[368771929,1751356888692,460.0,0.00018037,2]
[368771930,1751356889991,640.5,0.00018036,2]
[368771931,1751356890342,460.0,0.00018037,2]
[368771932,1751356904323,460.0,0.00018037,2]
[368771933,1751356904460,413.44586871,0.00018037,2]
[368771934,1751356904532,46.55413129,0.00018037,2]
[368771935,1751356906286,460.0,0.00018036,2]
[368771936,1751356910076,460.0,0.00018036,2]
[368771937,1751356913278,460.0,0.00018036,2]
[368771938,1751356913398,460.0,0.00018037,2]
[368771939,1751356917307,460.0,0.00018036,2]
[368771940,1751356917510,460.0,0.00018037,2]
[368771941,1751356925593,460.0,0.00018037,2]
[368771942,1751356933268,460.0,0.00018036,2]
[368771943,1751356941768,460.0,0.00018037,2]
[368771945,1751356950798,460.0,0.00018037,2]
[368771946,1751356951813,460.0,0.00018038,2]
[368771947,1751356953260,460.0,0.00018036,2]
[368771948,1751356958816,460.0,0.00018036,2]
[368771949,1751356961368,531.41,0.00018037,2]
[368771950,1751356966369,460.0,0.00018036,2]
[368771951,1751356977820,460.0,0.00018036,2]
[368771952,1751356980512,2066.25786,0.00017236,2]
[368771953,1751356991362,460.0,0.00018036,2]
[368771954,1751356992637,197.11,0.00018036,2]
[368771955,1751356994088,460.0,0.00018037,2]
[368771956,1751357001980,208.61723,0.00017656,2]
[368771957,1751357002312,470.76565776,0.00017665,2]
[368771958,1751357002574,460.0,0.00018037,2]
[368771959,1751357003263,460.0,0.00018036,2]
[368771960,1751357007985,460.0,0.00018038,2]
[368771962,1751357015840,460.0,0.00018036,2]
[368771963,1751357029623,460.0,0.00018036,2]
[368771964,1751357036563,460.0,0.00018036,2]
[368771966,1751357042877,166.0,0.00017211,2]
[368771967,1751357046593,460.0,0.00018038,2]
[368771968,1751357050698,460.0,0.00018036,2]
[368771969,1751357053765,460.0,0.00018038,2]
[368771970,1751357055487,460.0,0.00018037,2]
[368771971,1751357055707,460.0,0.00018038,2]
[368771972,1751357057634,460.0,0.00018038,2]
[368771973,1751357058095,460.0,0.00018036,2]
[368771974,1751357058397,460.0,0.00018037,2]
[368771975,1751357060049,460.0,0.00018037,2]
[368771976,1751357060334,988.01,0.00018037,2]
[368771977,1751357064778,460.0,0.00018037,2]
[368771978,1751357066934,145.27512095,0.00018036,2]
[368771979,1751357067003,314.72487905,0.00018036,2]
[368771980,1751357068045,460.0,0.00018038,2]
[368771981,1751357068688,460.0,0.00018037,2]
[368771982,1751357082379,460.0,0.00018037,2]
[368771984,1751357083662,1325.854146,0.00017211,2]
[368771985,1751357090390,460.0,0.00018037,2]
[368771986,1751357102171,460.0,0.00018036,2]
[368771987,1751357102379,460.0,0.00018038,2]
[368771988,1751357104674,151.6772213,6.9e-07,2]
[368771989,1751357104832,151.6772213,6.9e-07,2]
[368771990,1751357105280,460.0,0.00018037,2]
[368771991,1751357108644,460.0,0.00018037,2]
[368771996,1751357114340,460.0,0.00018038,2]
[368772100,1751357127321,460.0,0.00018037,2]
[368772103,1751357127557,766.26,0.00018037,2]
[368772161,1751357133510,460.0,0.00018037,2]
[368772238,1751357140734,460.0,0.00018037,2]
[368772257,1751357142245,228.5466811,0.00017208,2]
[368772258,1751357142507,460.0,0.00018036,2]
[368772278,1751357144940,460.0,0.00018036,2]
[368772287,1751357145809,460.0,0.00018037,2]
[368772289,1751357145942,165.29168728,0.00018038,2]
[368772311,1751357150757,460.0,0.00018037,2]
[368772312,1751357151666,460.0,0.00018037,2]
[368772313,1751357153093,-287.3330831,0.00018101,2]
[368772314,1751357153114,-201.79083746,0.00018102,2]
[368772315,1751357153134,-65.60318892,0.00018201,2]
[368772358,1751357158128,1805.74,0.00018037,2]
[368772387,1751357161435,500.0,0.00018037,2]
[368772388,1751357161664,500.0,0.00018037,2]
[368772389,1751357161903,500.0,0.00018038,2]
[368772390,1751357162180,460.0,0.00018036,2]
[368772394,1751357162615,460.0,0.00018036,2]
[368772412,1751357166711,460.0,0.00018037,2]
[368772413,1751357169679,460.0,0.00018037,2]
[368772414,1751357172623,460.0,0.00018036,2]
[368772415,1751357173901,1515.8,0.00018036,2]
[368772417,1751357180649,460.0,0.00018036,2]
[368772418,1751357181726,1259.7563929,0.00017348,2]
[368772419,1751357187775,234.67177107,0.00018036,2]
[368772420,1751357187851,225.32822893,0.00018036,2]
[368772421,1751357189474,460.0,0.00018036,2]
[368772422,1751357192412,512.72,0.00018037,2]
[368772423,1751357196835,490.908014,0.00013699,2]
[368772424,1751357198685,2193.0,0.00025171,60]
[368772425,1751357202079,460.0,0.00018037,2]
[368772426,1751357203056,460.0,0.00018036,2]
[368772427,1751357205028,460.0,0.00018037,2]
[368772428,1751357206600,460.0,0.00018036,2]
[368772469,1751357215294,460.0,0.00018036,2]
[368772471,1751357223522,460.0,0.00018037,2]
[368772472,1751357225339,460.0,0.00018036,2]
[368772473,1751357230035,460.0,0.00018036,2]
[368772475,1751357233480,460.0,0.00018036,2]
[368772476,1751357238085,-199.00273102,0.00018129,2]
[368772477,1751357238107,-234.39681108,0.00018201,2]
[368772478,1751357238130,-179.95823482,0.00018201,2]
[368772479,1751357251394,460.0,0.00018036,2]
[368772480,1751357258428,726.2450457,0.00017208,2]
[368772481,1751357269652,509.27,0.00018036,2]
[368772482,1751357271219,460.0,0.00018037,2]
[368772483,1751357277067,460.0,0.00018037,2]
[368772484,1751357297184,460.0,0.00018037,2]
[368772485,1751357304335,460.0,0.00018037,2]
[368772486,1751357306231,164.860796,0.00017656,2]
[368772487,1751357306615,220.89071966,0.00017664,2]
[368772488,1751357310450,532.35,0.00018037,2]
[368772491,1751357323493,460.0,0.00018036,2]
[368772492,1751357337246,460.0,0.00018037,2]
[368772493,1751357338990,460.0,0.00018036,2]
[368772494,1751357344671,460.0,0.00018036,2]
[368772496,1751357357163,946.84,0.00018036,2]
[368772497,1751357388553,460.0,0.00018036,2]
[368772498,1751357400449,1884.53,0.00018039,2]
[368772499,1751357400715,1884.53,0.00018039,2]
[368772500,1751357400963,1884.53,0.00018039,2]
[368772501,1751357401243,816.99719571,0.00018039,2]
[368772502,1751357401315,1067.53280429,0.00018039,2]
[368772503,1751357401496,1884.53,0.00018039,2]
[368772504,1751357401676,484.52112975,0.00018037,2]
[368772505,1751357403167,583.4278489,0.00017211,2]
[368772506,1751357403856,460.0,0.00018036,2]
[368772507,1751357404796,10000.0,0.00017211,2]
[368772508,1751357427198,460.0,0.00018037,2]
[368772509,1751357427458,5059.98821706,0.00017349,2]
[368772510,1751357427537,395.73750674,0.00017349,2]
[368772545,1751357432800,-300.0,0.00018201,2]
[368772547,1751357432810,-1020.0,0.00018201,2]
[368772549,1751357432824,-1412.36075204,0.00018201,2]
[368772550,1751357432834,-1458.24973066,0.00018202,3]
[368772552,1751357432847,-532.72026934,0.00018202,3]
[368772554,1751357432857,-995.48,0.00018202,3]
[368772556,1751357432866,-367.07664468,0.00018202,3]
[368772559,1751357432879,-130.66335532,0.00018202,3]
[368772561,1751357432888,-248.87,0.00018202,3]
[368772563,1751357432898,-746.66,0.00018202,3]
[368772565,1751357432908,-493.61217349,0.0001821,2]
[368772567,1751357432917,-460.0,0.0001821,2]
[368772569,1751357432927,-367.28388297,0.0001821,2]
[368772571,1751357432937,-459.59645436,0.0001821,2]
[368772573,1751357432947,-460.0,0.0001821,2]
[368772575,1751357432957,-460.0,0.0001821,2]
[368772577,1751357432967,-725.72,0.0001821,2]
[368772579,1751357432977,-460.0,0.0001821,2]
[368772581,1751357432987,-460.0,0.0001821,2]
[368772583,1751357432997,-460.0,0.0001821,2]
[368772585,1751357433006,-460.0,0.0001821,2]
[368772587,1751357433016,-460.0,0.0001821,2]
[368772589,1751357433026,-460.0,0.0001821,2]
[368772591,1751357433036,-460.0,0.0001821,2]
[368772593,1751357433047,-540.0,0.00018211,2]
[368772595,1751357433057,-460.0,0.00018211,2]
[368772597,1751357433066,-460.0,0.00018211,2]
[368772598,1751357433076,-460.0,0.00018211,2]
[368772599,1751357433087,-332.85242391,0.00018211,2]
[368772600,1751357433100,-500.0,0.00018211,2]
[368772601,1751357433109,-460.0,0.00018211,2]
[368772602,1751357433120,-460.0,0.00018211,2]
[368772603,1751357433130,-460.0,0.00018211,2]
[368772604,1751357433140,-460.0,0.00018211,2]
[368772605,1751357433150,-460.0,0.00018211,2]
[368772606,1751357433161,-460.0,0.00018211,2]
[368772607,1751357433172,-460.0,0.00018211,2]
[368772608,1751357433183,-460.0,0.00018211,2]
[368772609,1751357433193,-460.0,0.00018211,2]
[368772610,1751357433203,-460.0,0.00018211,2]
[368772611,1751357433214,-460.0,0.00018211,2]
[368772612,1751357433225,-460.0,0.00018211,2]
[368772613,1751357433235,-460.0,0.00018211,2]
[368772614,1751357433245,-460.0,0.00018211,2]
[368772615,1751357433262,-460.0,0.00018211,2]
[368772616,1751357433277,-460.0,0.00018211,2]
[368772617,1751357433292,-460.0,0.00018211,2]
[368772618,1751357433308,-460.0,0.00018211,2]
[368772619,1751357433323,-460.0,0.00018211,2]
[368772620,1751357433335,-460.0,0.00018211,2]
[368772621,1751357433346,-504.94,0.00018211,2]
[368772622,1751357433360,-460.0,0.00018211,2]
[368772623,1751357433373,-460.0,0.00018211,2]
[368772624,1751357433386,-241.01969559,0.00018211,2]
[368772625,1751357433400,-460.0,0.00018211,2]
[368772626,1751357433413,-460.0,0.00018211,2]
[368772627,1751357433426,-460.0,0.00018211,2]
[368772628,1751357433438,-460.0,0.00018211,2]
[368772629,1751357433450,-460.0,0.00018211,2]
[368772630,1751357433465,-1413.86,0.00018211,2]
[368772631,1751357433478,-460.0,0.00018211,2]
[368772632,1751357433491,-460.0,0.00018211,2]
[368772633,1751357433503,-460.0,0.00018211,2]
[368772634,1751357433515,-460.0,0.00018211,2]
[368772635,1751357433530,-460.0,0.00018211,2]
[368772636,1751357433543,-460.0,0.00018211,2]
[368772637,1751357433555,-892.25,0.00018211,2]
[368772638,1751357433568,-1227.57,0.00018211,2]
[368772639,1751357433581,-460.0,0.00018211,2]
[368772640,1751357433594,-460.0,0.00018211,2]
[368772641,1751357433607,-460.0,0.00018211,2]
[368772642,1751357433617,-460.0,0.00018211,2]
[368772643,1751357433628,-460.0,0.00018211,2]
[368772644,1751357433638,-524.65,0.00018211,2]
[368772645,1751357433650,-460.0,0.00018211,2]
[368772646,1751357433661,-460.0,0.00018211,2]
[368772647,1751357433673,-460.0,0.00018211,2]
[368772648,1751357433686,-460.0,0.00018211,2]
[368772649,1751357433697,-460.0,0.00018211,2]
[368772650,1751357433710,-460.0,0.00018211,2]
[368772651,1751357433722,-460.0,0.00018211,2]
[368772652,1751357433735,-460.0,0.00018211,2]
[368772653,1751357433747,-1053.97,0.00018211,2]
[368772654,1751357433760,-460.0,0.00018211,2]
[368772655,1751357433773,-463.75842511,0.00018211,2]
[368772656,1751357433786,-460.0,0.00018211,2]
[368772657,1751357433798,-184.9,0.00018211,2]
[368772658,1751357433809,-1098.10001835,0.00018211,2]
[368772685,1751357438863,-460.0,0.0001821,2]
[368772686,1751357438875,-16.46081799,0.00018211,2]
[368772687,1751357438891,-106.70916366,0.00018211,2]
[368772688,1751357438902,-460.0,0.00018211,2]
[368772689,1751357438915,-460.0,0.00018211,2]
[368772690,1751357438926,-460.0,0.00018211,2]
[368772691,1751357438937,-460.0,0.00018211,2]
[368772692,1751357438949,-460.0,0.00018211,2]
[368772693,1751357438960,-414.59972866,0.00018211,2]
[368772694,1751357438972,-460.0,0.00018211,2]
[368772695,1751357438983,-460.0,0.00018211,2]
[368772696,1751357438995,-613.82,0.00018211,2]
[368772697,1751357439007,-460.0,0.00018211,2]
[368772698,1751357439019,-737.26,0.00018211,2]
[368772699,1751357439030,-411.17433817,0.00018211,2]
[368772700,1751357439061,-48.82566183,0.00018211,2]
[368772701,1751357439074,-460.0,0.00018211,2]
[368772702,1751357439084,-460.0,0.00018211,2]
[368772703,1751357439095,-460.0,0.00018211,2]
[368772704,1751357439109,-460.0,0.00018211,2]
[368772705,1751357439118,-460.0,0.00018211,2]
[368772706,1751357439278,-460.0,0.00018211,2]
[368772707,1751357439294,-460.0,0.00018211,2]
[368772708,1751357439304,-460.0,0.00018211,2]
[368772709,1751357439313,-460.0,0.00018211,2]
[368772710,1751357439323,-234.93925114,0.00018211,2]
[368772711,1751357439332,-460.0,0.00018211,2]
[368772712,1751357439342,-460.0,0.00018211,2]
[368772713,1751357439352,-460.0,0.00018211,2]
[368772714,1751357439362,-460.0,0.00018211,2]
[368772715,1751357439371,-460.0,0.00018211,2]
[368772716,1751357439380,-460.0,0.00018211,2]
[368772717,1751357439390,-460.0,0.00018211,2]
[368772718,1751357439400,-506.4,0.00018211,2]
[368772719,1751357439409,-460.0,0.00018211,2]
[368772720,1751357439420,-460.0,0.00018211,2]
[368772721,1751357439429,-460.0,0.00018211,2]
[368772722,1751357439438,-460.0,0.00018211,2]
[368772723,1751357439447,-460.0,0.00018211,2]
[368772724,1751357439456,-460.0,0.00018211,2]
[368772725,1751357439466,-460.0,0.00018211,2]
[368772726,1751357439475,-551.64,0.00018211,2]
[368772727,1751357439484,-460.0,0.00018211,2]
[368772728,1751357439494,-460.0,0.00018211,2]
[368772729,1751357439503,-411.49704989,0.00018211,2]
[368772730,1751357439512,-338.16,0.00018211,2]
[368772731,1751357439522,-500.0,0.00018211,2]
[368772732,1751357439531,-500.0,0.00018211,2]
[368772733,1751357439540,-460.0,0.00018211,2]
[368772734,1751357439550,-500.0,0.00018211,2]
[368772735,1751357439560,-500.0,0.00018211,2]
[368772736,1751357439570,-500.0,0.00018211,2]
[368772737,1751357439579,-371.33,0.00018211,2]
[368772738,1751357439589,-460.0,0.00018211,2]
[368772739,1751357439598,-460.0,0.00018211,2]
[368772740,1751357439608,-460.0,0.00018211,2]
[368772741,1751357439617,-460.0,0.00018211,2]
[368772742,1751357439627,-460.0,0.00018211,2]
[368772743,1751357439637,-460.0,0.00018211,2]
[368772744,1751357439646,-460.0,0.00018211,2]
[368772745,1751357439656,-372.33003875,0.00018211,2]
[368772746,1751357439666,-289.20934516,0.00018211,2]
[368772747,1751357439675,-500.0,0.00018211,2]
[368772748,1751357439685,-427.21406161,0.00018211,2]
[368772749,1751357439694,-370000.0,0.00018212,2]
[368772750,1751357439703,-1884.53,0.00018301,2]
[368772751,1751357439713,-460.0,0.0001831,2]
[368772752,1751357439723,-460.0,0.0001831,2]
[368772753,1751357439733,-460.0,0.0001831,2]
[368772754,1751357439742,-460.0,0.0001831,2]
[368772755,1751357439753,-1515.8,0.0001831,2]
[368772756,1751357439764,-460.0,0.0001831,2]
[368772757,1751357439776,-460.0,0.0001831,2]
[368772758,1751357439786,-460.0,0.0001831,2]
[368772759,1751357439795,-460.0,0.0001831,2]
[368772760,1751357439805,-460.0,0.0001831,2]
[368772761,1751357439815,-509.27,0.0001831,2]
[368772762,1751357439827,-460.0,0.0001831,2]
[368772763,1751357439837,-460.0,0.0001831,2]
[368772764,1751357439846,-946.84,0.0001831,2]
[368772765,1751357439856,-460.0,0.0001831,2]
[368772766,1751357439866,-1884.53,0.0001831,2]
[368772767,1751357439876,-460.0,0.0001831,2]
[368772768,1751357439886,-460.0,0.00018311,2]
[368772769,1751357439896,-460.0,0.00018311,2]
[368772770,1751357439906,-460.0,0.00018311,2]
[368772771,1751357439915,-460.0,0.00018311,2]
[368772772,1751357439925,-460.0,0.00018311,2]
[368772773,1751357439934,-462.42147707,0.00018311,2]
[368772774,1751357439944,-460.0,0.00018311,2]
[368772775,1751357439955,-460.0,0.00018311,2]
[368772776,1751357439965,-460.0,0.00018311,2]
[368772777,1751357439975,-460.0,0.00018311,2]
[368772778,1751357439985,-460.0,0.00018311,2]
[368772779,1751357439995,-393.50508332,0.00018311,2]
[368772780,1751357440004,-460.0,0.00018311,2]
[368772781,1751357440014,-460.0,0.00018311,2]
[368772782,1751357440023,-460.0,0.00018311,2]
[368772783,1751357440033,-460.0,0.00018311,2]
[368772784,1751357440043,-460.0,0.00018311,2]
[368772785,1751357440054,-460.0,0.00018311,2]
[368772786,1751357440064,-460.0,0.00018311,2]
[368772787,1751357440073,-460.0,0.00018311,2]
[368772788,1751357440083,-460.0,0.00018311,2]
[368772789,1751357440093,-460.0,0.00018311,2]
[368772790,1751357440106,-460.0,0.00018311,2]
[368772791,1751357440115,-460.0,0.00018311,2]
[368772792,1751357440125,-460.0,0.00018311,2]
[368772793,1751357440134,-460.0,0.00018311,2]
[368772794,1751357440144,-549.37,0.00018311,2]
[368772795,1751357440154,-460.0,0.00018311,2]
[368772796,1751357440163,-460.0,0.00018311,2]
[368772797,1751357440173,-477.09,0.00018311,2]
[368772798,1751357440184,-460.0,0.00018311,2]
[368772799,1751357440194,-460.0,0.00018311,2]
[368772800,1751357440203,-325.55,0.00018311,2]
[368772801,1751357440212,-460.0,0.00018311,2]
[368772802,1751357440223,-460.0,0.00018311,2]
[368772803,1751357440233,-1884.53,0.00018311,2]
[368772804,1751357440242,-1884.53,0.00018311,2]
[368772805,1751357440252,-460.0,0.00018311,2]
[368772806,1751357440262,-460.0,0.00018312,2]
[368772807,1751357440272,-460.0,0.00018312,2]
[368772808,1751357440281,-460.0,0.00018312,2]
[368772809,1751357440291,-460.0,0.00018312,2]
[368772810,1751357440301,-460.0,0.00018312,2]
[368772811,1751357440310,-460.0,0.00018312,2]
[368772812,1751357440320,-1884.53,0.00018312,2]
[368772813,1751357440329,-460.0,0.00018313,2]
[368772814,1751357440339,-1884.53,0.00018313,2]
[368772815,1751357440348,-460.0,0.00018484,2]
[368772816,1751357440358,-460.0,0.00018484,2]
[368772817,1751357440367,-725.72,0.00018484,2]
[368772818,1751357440377,-460.0,0.00018484,2]
[368772819,1751357440386,-252.04220623,0.00018484,2]
[368772820,1751357440396,-252.04220623,0.00018484,2]
[368772821,1751357440405,-460.0,0.00018485,2]
[368772822,1751357440415,-460.0,0.00018485,2]
[368772823,1751357440425,-602.63,0.00018485,2]
[368772824,1751357440434,-309.80196835,0.00018485,2]
[368772825,1751357440444,-460.0,0.00018485,2]
[368772826,1751357440453,-460.0,0.00018485,2]
[368772827,1751357440463,-460.0,0.00018485,2]
[368772828,1751357440473,-460.0,0.00018485,2]
[368772829,1751357440482,-460.0,0.00018485,2]
[368772830,1751357440491,-460.0,0.00018485,2]
[368772831,1751357440502,-460.0,0.00018485,2]
[368772832,1751357440511,-291.48611654,0.00018485,2]
[368772833,1751357440520,-460.0,0.00018485,2]
[368772834,1751357440529,-1413.86,0.00018485,2]
[368772835,1751357440539,-460.0,0.00018485,2]
[368772837,1751357440548,-460.0,0.00018485,2]
[368772838,1751357440557,-460.0,0.00018485,2]
[368772839,1751357440566,-460.0,0.00018485,2]
[368772841,1751357440575,-460.0,0.00018485,2]
[368772842,1751357440584,-460.0,0.00018485,2]
[368772843,1751357440593,-892.25,0.00018485,2]
[368772844,1751357440603,-1227.57,0.00018485,2]
[368772845,1751357440612,-460.0,0.00018485,2]
[368772846,1751357440621,-460.0,0.00018485,2]
[368772847,1751357440630,-460.0,0.00018485,2]
[368772848,1751357440639,-460.0,0.00018485,2]
[368772849,1751357440649,-460.0,0.00018485,2]
[368772850,1751357440658,-460.0,0.00018485,2]
[368772851,1751357440668,-460.0,0.00018485,2]
[368772852,1751357440677,-460.0,0.00018485,2]
[368772853,1751357440687,-460.0,0.00018485,2]
[368772854,1751357440697,-1053.97,0.00018485,2]
[368772855,1751357440707,-460.0,0.00018485,2]
[368772856,1751357440717,-1221.27,0.00018485,2]
[368772857,1751357440726,-460.0,0.00018485,2]